[Event "Schack-SM 2023: Mastarklassen"]
[Site "Helsingborg Arena, Mellersta Stenbocksgatan 14, Helsingborg, Sweden"]
[Date "2023.07.05"]
[Round "5.9"]
[White "Carlstrom, Niklas"]
[Black "Mashhadi, Peyman"]
[Result "0-1"]
[TimeControl "90 minutes for 40 moves + 30 minutes for the rest of games + 30 seconds per move from move one."]
[WhiteElo "2125"]
[BlackElo "2117"]

1. d4 {[%clk 01:30:46]} {[%emt 00:00:13]} g6 {[%clk 01:30:47]} {[%emt
00:00:14]} 2. e4 {[%clk 01:30:42]} {[%emt 00:00:34]} Bg7 {[%clk 01:31:03]}
{[%emt 00:00:13]} 3. Nc3 {[%clk 01:30:56]} {[%emt 00:00:17]} d6 {[%clk
01:31:14]} {[%emt 00:00:20]} 4. Bc4 {[%clk 01:30:30]} {[%emt 00:00:56]} Nf6
{[%clk 01:30:52]} {[%emt 00:00:50]} 5. Qe2 {[%clk 01:29:53]} {[%emt 00:01:07]}
Nc6 {[%clk 01:27:31]} {[%emt 00:03:52]} 6. e5 {[%clk 01:27:05]} {[%emt
00:03:18]} Nxd4 {[%clk 01:23:34]} {[%emt 00:04:26]} 7. exf6 {[%clk 01:27:22]}
{[%emt 00:00:12]} Nxe2 {[%clk 01:23:19]} {[%emt 00:00:46]} 8. fxg7 {[%clk
01:27:45]} {[%emt 00:00:07]} Rg8 {[%clk 01:23:29]} {[%emt 00:00:21]} 9. Ngxe2
{[%clk 01:28:01]} {[%emt 00:00:14]} c6 {[%clk 01:14:55]} {[%emt 00:09:04]} 10.
Bh6 {[%clk 01:16:39]} {[%emt 00:11:52]} Qa5 {[%clk 01:06:32]} {[%emt 00:08:54]}
11. O-O-O {[%clk 01:08:16]} {[%emt 00:08:52]} Qh5 {[%clk 00:57:41]} {[%emt
00:09:21]} 12. Be3 {[%clk 00:59:52]} {[%emt 00:08:53]} Rxg7 {[%clk 00:47:39]}
{[%emt 00:10:32]} 13. Ng3 {[%clk 00:53:54]} {[%emt 00:06:29]} Qa5 {[%clk
00:45:57]} {[%emt 00:02:11]} 14. Rhe1 {[%clk 00:49:12]} {[%emt 00:05:12]} d5
{[%clk 00:39:17]} {[%emt 00:07:11]} 15. Bb3 {[%clk 00:41:06]} {[%emt 00:08:36]}
Be6 {[%clk 00:37:41]} {[%emt 00:02:05]} 16. Nge2 {[%clk 00:34:40]} {[%emt
00:06:57]} g5 {[%clk 00:31:48]} {[%emt 00:06:24]} 17. Rd4 {[%clk 00:25:09]}
{[%emt 00:09:59]} Qc7 {[%clk 00:26:55]} {[%emt 00:05:23]} 18. g3 {[%clk
00:22:24]} {[%emt 00:03:15]} f6 {[%clk 00:24:28]} {[%emt 00:02:57]} 19. f4
{[%clk 00:16:47]} {[%emt 00:06:07]} Bg8 {[%clk 00:22:58]} {[%emt 00:02:00]} 20.
fxg5 {[%clk 00:06:57]} {[%emt 00:10:20]} fxg5 {[%clk 00:22:38]} {[%emt
00:00:50]} 21. Rg4 {[%clk 00:04:38]} {[%emt 00:02:49]} h6 {[%clk 00:22:29]}
{[%emt 00:00:40]} 22. Bc5 {[%clk 00:02:50]} {[%emt 00:02:17]} O-O-O {[%clk
00:21:56]} {[%emt 00:01:03]} 23. Ra4 {[%clk 00:01:43]} {[%emt 00:01:38]} b6
{[%clk 00:21:53]} {[%emt 00:00:32]} 24. Bg1 {[%clk 00:01:57]} {[%emt 00:00:15]}
e5 {[%clk 00:21:50]} {[%emt 00:00:34]} 25. h4 {[%clk 00:01:34]} {[%emt
00:00:54]} Bh7 {[%clk 00:15:39]} {[%emt 00:06:41]} 26. hxg5 {[%clk 00:00:44]}
{[%emt 00:01:20]} hxg5 {[%clk 00:16:01]} {[%emt 00:00:09]} 27. Nd1 {[%clk
00:00:54]} {[%emt 00:00:19]} c5 {[%clk 00:14:43]} {[%emt 00:01:49]} 28. c4
{[%clk 00:00:59]} {[%emt 00:00:25]} d4 {[%clk 00:14:55]} {[%emt 00:00:17]} 29.
Rf1 {[%clk 00:01:10]} {[%emt 00:00:19]} d3 {[%clk 00:15:02]} {[%emt 00:00:23]}
0-1

[Event "Schack-SM 2023: Veteran-SM 65+"]
[Site "Helsingborg Arena, Mellersta Stenbocksgatan 14, Helsingborg, Sweden"]
[Date "2023.07.05"]
[Round "5.4"]
[White "Holst, Conny"]
[Black "Alquist, Erik"]
[Result "0-1"]
[TimeControl "90 minutes for 40 moves + 30 minutes for the rest of games + 30 seconds per move from move one."]
[WhiteTitle "FM"]
[WhiteElo "2156"]
[BlackElo "1936"]

1. d4 {[%clk 01:30:53]} {[%emt 00:00:05]} Nf6 {[%clk 01:30:54]} {[%emt
00:00:07]} 2. c4 {[%clk 01:31:11]} {[%emt 00:00:11]} g6 {[%clk 01:31:04]}
{[%emt 00:00:21]} 3. Nc3 {[%clk 01:31:22]} {[%emt 00:00:19]} d5 {[%clk
01:31:18]} {[%emt 00:00:16]} 4. cxd5 {[%clk 01:30:43]} {[%emt 00:01:09]} Nxd5
{[%clk 01:31:35]} {[%emt 00:00:13]} 5. e4 {[%clk 01:31:02]} {[%emt 00:00:11]}
Nxc3 {[%clk 01:31:56]} {[%emt 00:00:09]} 6. bxc3 {[%clk 01:31:21]} {[%emt
00:00:10]} Bg7 {[%clk 01:32:18]} {[%emt 00:00:08]} 7. Nf3 {[%clk 01:31:06]}
{[%emt 00:00:46]} c5 {[%clk 01:32:20]} {[%emt 00:00:28]} 8. Be3 {[%clk
01:29:36]} {[%emt 00:02:00]} Qa5 {[%clk 01:32:15]} {[%emt 00:00:35]} 9. Bd2
{[%clk 01:28:00]} {[%emt 00:02:05]} O-O {[%clk 01:31:43]} {[%emt 00:01:03]} 10.
Be2 {[%clk 01:26:37]} {[%emt 00:01:53]} Bg4 {[%clk 01:31:22]} {[%emt 00:00:50]}
11. O-O {[%clk 01:23:00]} {[%emt 00:04:07]} Rd8 {[%clk 01:31:00]} {[%emt
00:00:52]} 12. Rb1 {[%clk 01:18:43]} {[%emt 00:04:48]} cxd4 {[%clk 01:29:55]}
{[%emt 00:01:35]} 13. cxd4 {[%clk 01:18:55]} {[%emt 00:00:17]} Qxa2 {[%clk
01:29:56]} {[%emt 00:00:30]} 14. d5 {[%clk 01:12:24]} {[%emt 00:07:01]} Nd7
{[%clk 01:29:47]} {[%emt 00:00:39]} 15. Bb4 {[%clk 01:03:23]} {[%emt 00:09:30]}
Bf6 {[%clk 01:20:12]} {[%emt 00:10:05]} 16. h3 {[%clk 00:55:05]} {[%emt
00:08:49]} Bxf3 {[%clk 01:20:08]} {[%emt 00:00:34]} 17. Bxf3 {[%clk 00:55:28]}
{[%emt 00:00:07]} Rac8 {[%clk 01:12:34]} {[%emt 00:08:03]} 18. Bg4 {[%clk
00:49:34]} {[%emt 00:06:24]} h5 {[%clk 00:56:21]} {[%emt 00:16:43]} 19. Bxd7
{[%clk 00:37:56]} {[%emt 00:12:09]} Rxd7 {[%clk 00:56:43]} {[%emt 00:00:08]} 20.
Rb3 {[%clk 00:35:27]} {[%emt 00:02:59]} Qc2 {[%clk 00:53:38]} {[%emt 00:03:35]}
21. Qf3 {[%clk 00:34:29]} {[%emt 00:01:28]} Rc4 {[%clk 00:51:20]} {[%emt
00:02:48]} 22. d6 {[%clk 00:32:01]} {[%emt 00:02:58]} Qxe4 {[%clk 00:47:50]}
{[%emt 00:04:00]} 23. dxe7 {[%clk 00:30:54]} {[%emt 00:01:36]} Bxe7 {[%clk
00:46:48]} {[%emt 00:01:32]} 24. Bxe7 {[%clk 00:24:51]} {[%emt 00:06:34]} Qxf3
{[%clk 00:44:27]} {[%emt 00:02:50]} 25. Rxf3 {[%clk 00:24:35]} {[%emt
00:00:46]} Rxe7 {[%clk 00:44:51]} {[%emt 00:00:07]} 26. Rb1 {[%clk 00:20:52]}
{[%emt 00:04:12]} b6 {[%clk 00:43:17]} {[%emt 00:02:05]} 27. Ra3 {[%clk
00:19:55]} {[%emt 00:01:27]} Kg7 {[%clk 00:42:19]} {[%emt 00:01:28]} 28. g3
{[%clk 00:18:48]} {[%emt 00:01:37]} Rc2 {[%clk 00:40:57]} {[%emt 00:01:51]} 29.
Kg2 {[%clk 00:18:13]} {[%emt 00:01:05]} Rb7 {[%clk 00:36:21]} {[%emt 00:05:07]}
30. Rb5 {[%clk 00:17:17]} {[%emt 00:01:26]} Rc5 {[%clk 00:35:03]} {[%emt
00:01:48]} 31. Rxc5 {[%clk 00:16:55]} {[%emt 00:00:52]} bxc5 {[%clk 00:35:01]}
{[%emt 00:00:31]} 32. Kf3 {[%clk 00:16:25]} {[%emt 00:01:00]} c4 {[%clk
00:33:28]} {[%emt 00:02:03]} 33. Ke4 {[%clk 00:14:42]} {[%emt 00:02:13]} Rc7
{[%clk 00:33:38]} {[%emt 00:00:20]} 34. Rc3 {[%clk 00:14:59]} {[%emt 00:00:13]}
Kf6 {[%clk 00:34:00]} {[%emt 00:00:08]} 35. Kd4 {[%clk 00:13:00]} {[%emt
00:02:29]} Ke6 {[%clk 00:33:55]} {[%emt 00:00:35]} 36. Re3+ {[%clk 00:12:14]}
{[%emt 00:01:17]} Kd6 {[%clk 00:33:55]} {[%emt 00:00:30]} 37. Kc3 {[%clk
00:12:31]} {[%emt 00:00:13]} Kd5 {[%clk 00:33:05]} {[%emt 00:01:19]} 38. Re8
{[%clk 00:10:14]} {[%emt 00:02:47]} a6 {[%clk 00:25:20]} {[%emt 00:08:16]} 39.
f4 {[%clk 00:07:36]} {[%emt 00:03:08]} Kd6 {[%clk 00:19:47]} {[%emt 00:06:03]}
40. Ra8 {[%clk 00:06:14]} {[%emt 00:01:51]} Rc6 {[%clk 00:18:23]} {[%emt
00:01:54]} 41. Ra7 {[%clk 00:28:14]} {[%emt 00:08:31]} Ke6 {[%clk 00:45:28]}
{[%emt 00:03:24]} 42. g4 {[%clk 00:26:08]} {[%emt 00:02:36]} Kf6 {[%clk
00:36:27]} {[%emt 00:09:31]} 43. Rd7 {[%clk 00:19:39]} {[%emt 00:07:00]} h4
{[%clk 00:30:54]} {[%emt 00:06:02]} 44. g5+ {[%clk 00:15:16]} {[%emt 00:04:53]}
Ke6 {[%clk 00:30:26]} {[%emt 00:00:58]} 45. Ra7 {[%clk 00:14:48]} {[%emt
00:00:58]} f6 {[%clk 00:27:53]} {[%emt 00:03:03]} 46. gxf6 {[%clk 00:13:45]}
{[%emt 00:01:34]} Kxf6 {[%clk 00:28:17]} {[%emt 00:00:06]} 47. Rh7 {[%clk
00:14:06]} {[%emt 00:00:09]} Kf5 {[%clk 00:27:16]} {[%emt 00:01:31]} 48. Rxh4
{[%clk 00:14:20]} {[%emt 00:00:16]} a5 {[%clk 00:27:38]} {[%emt 00:00:08]} 49.
Rg4 {[%clk 00:09:19]} {[%emt 00:05:30]} a4 {[%clk 00:27:54]} {[%emt 00:00:14]}
50. Rg1 {[%clk 00:04:28]} {[%emt 00:05:21]} Kxf4 {[%clk 00:28:08]} {[%emt
00:00:17]} 51. h4 {[%clk 00:04:49]} {[%emt 00:00:09]} a3 {[%clk 00:26:34]}
{[%emt 00:02:04]} 52. Rg5 {[%clk 00:03:39]} {[%emt 00:01:40]} Ra6 {[%clk
00:25:48]} {[%emt 00:01:16]} 53. Rg1 {[%clk 00:03:40]} {[%emt 00:00:29]} a2
{[%clk 00:26:04]} {[%emt 00:00:14]} 54. Ra1 {[%clk 00:04:04]} {[%emt 00:00:05]}
Ra4 {[%clk 00:25:38]} {[%emt 00:00:57]} 55. Kb2 {[%clk 00:04:18]} {[%emt
00:00:16]} Kg4 {[%clk 00:25:28]} {[%emt 00:00:40]} 56. Rg1+ {[%clk 00:04:46]}
{[%emt 00:00:02]} Kxh4 {[%clk 00:25:41]} {[%emt 00:00:16]} 57. Ka1 {[%clk
00:05:14]} {[%emt 00:00:01]} g5 {[%clk 00:25:46]} {[%emt 00:00:26]} 58. Rh1+
{[%clk 00:05:39]} {[%emt 00:00:05]} Kg4 {[%clk 00:25:26]} {[%emt 00:00:50]} 59.
Rg1+ {[%clk 00:06:04]} {[%emt 00:00:06]} Kf4 {[%clk 00:24:23]} {[%emt
00:01:33]} 60. Rf1+ {[%clk 00:06:28]} {[%emt 00:00:06]} Ke3 {[%clk 00:18:50]}
{[%emt 00:06:02]} 61. Rg1 {[%clk 00:05:30]} {[%emt 00:01:29]} Ra5 {[%clk
00:18:09]} {[%emt 00:01:11]} 62. Rg4 {[%clk 00:05:22]} {[%emt 00:00:37]} Kf3
{[%clk 00:17:22]} {[%emt 00:01:17]} 63. Rxc4 {[%clk 00:05:35]} {[%emt
00:00:18]} g4 {[%clk 00:17:45]} {[%emt 00:00:06]} 64. Rc3+ {[%clk 00:05:42]}
{[%emt 00:00:24]} Kg2 {[%clk 00:18:06]} {[%emt 00:00:09]} 0-1

[Event "Schack-SM 2023: Veteran-SM 50+"]
[Site "Helsingborg Arena, Mellersta Stenbocksgatan 14, Helsingborg, Sweden"]
[Date "2023.07.05"]
[Round "5.4"]
[White "Moborn, Anders"]
[Black "Kirppo, Ronny"]
[Result "1-0"]
[TimeControl "90 minutes for 40 moves + 30 minutes for the rest of games + 30 seconds per move from move one."]
[WhiteElo "1956"]
[BlackElo "1886"]

1. d4 {[%clk 01:30:54]} {[%emt 00:00:05]} Nf6 {[%clk 01:30:49]} {[%emt
00:00:12]} 2. c4 {[%clk 01:31:11]} {[%emt 00:00:13]} e6 {[%clk 01:31:13]}
{[%emt 00:00:06]} 3. Nc3 {[%clk 01:31:13]} {[%emt 00:00:28]} Bb4 {[%clk
01:31:25]} {[%emt 00:00:18]} 4. f3 {[%clk 01:31:06]} {[%emt 00:00:36]} c5
{[%clk 01:31:29]} {[%emt 00:00:26]} 5. a3 {[%clk 01:31:12]} {[%emt 00:00:24]}
Bxc3+ {[%clk 01:29:54]} {[%emt 00:02:05]} 6. bxc3 {[%clk 01:31:11]} {[%emt
00:00:32]} d6 {[%clk 01:29:47]} {[%emt 00:00:36]} 7. e4 {[%clk 01:25:25]}
{[%emt 00:06:16]} Nbd7 {[%clk 01:19:49]} {[%emt 00:10:28]} 8. Bd3 {[%clk
01:14:55]} {[%emt 00:11:01]} Qc7 {[%clk 01:02:29]} {[%emt 00:17:50]} 9. Ne2
{[%clk 01:01:08]} {[%emt 00:14:17]} b6 {[%clk 00:56:38]} {[%emt 00:06:22]} 10.
Be3 {[%clk 00:53:43]} {[%emt 00:07:54]} Bb7 {[%clk 00:55:43]} {[%emt 00:01:24]}
11. O-O {[%clk 00:52:56]} {[%emt 00:01:17]} O-O {[%clk 00:55:38]} {[%emt
00:00:36]} 12. g4 {[%clk 00:50:38]} {[%emt 00:02:48]} Rac8 {[%clk 00:47:00]}
{[%emt 00:09:08]} 13. Qe1 {[%clk 00:47:04]} {[%emt 00:04:03]} Ba6 {[%clk
00:47:09]} {[%emt 00:00:22]} 14. Rc1 {[%clk 00:39:44]} {[%emt 00:07:49]} Qc6
{[%clk 00:42:41]} {[%emt 00:04:58]} 15. Qh4 {[%clk 00:37:02]} {[%emt 00:03:13]}
e5 {[%clk 00:41:20]} {[%emt 00:01:51]} 16. g5 {[%clk 00:36:16]} {[%emt
00:01:16]} Ne8 {[%clk 00:41:48]} {[%emt 00:00:01]} 17. f4 {[%clk 00:35:28]}
{[%emt 00:01:18]} Qa4 {[%clk 00:38:43]} {[%emt 00:03:35]} 18. Ng3 {[%clk
00:30:12]} {[%emt 00:05:46]} Bxc4 {[%clk 00:37:23]} {[%emt 00:01:50]} 19. Bxc4
{[%clk 00:30:05]} {[%emt 00:00:38]} Qxc4 {[%clk 00:37:51]} {[%emt 00:00:02]} 20.
Nf5 {[%clk 00:30:18]} {[%emt 00:00:15]} Kh8 {[%clk 00:35:22]} {[%emt 00:03:00]}
21. Rf3 {[%clk 00:30:26]} {[%emt 00:00:22]} exd4 {[%clk 00:25:36]} {[%emt
00:10:16]} 22. Qxh7+ {[%clk 00:30:25]} {[%emt 00:00:31]} Kxh7 {[%clk 00:25:56]}
{[%emt 00:00:11]} 23. Rh3+ {[%clk 00:30:48]} {[%emt 00:00:05]} Kg8 {[%clk
00:26:21]} {[%emt 00:00:05]} 24. Ne7# {[%clk 00:31:11]} {[%emt 00:00:08]} 1-0

[Event "Schack-SM 2023: Sverigemastarklassen"]
[Site "Helsingborg Arena, Mellersta Stenbocksgatan 14, Helsingborg, Sweden"]
[Date "2023.07.05"]
[Round "5.5"]
[White "Hillarp Persson, Tiger"]
[Black "Blomqvist, Erik"]
[Result "1-0"]
[TimeControl "90 minutes for 40 moves + 30 minutes for the rest of the game + 30 seconds per move from move one."]
[WhiteTitle "GM"]
[BlackTitle "GM"]
[WhiteElo "2493"]
[BlackElo "2500"]

1. d4 {[%clk 01:30:47]} {[%emt 00:00:12]} Nf6 {[%clk 01:30:54]} {[%emt
00:00:07]} 2. c4 {[%clk 01:31:11]} {[%emt 00:00:07]} e6 {[%clk 01:31:19]}
{[%emt 00:00:05]} 3. g3 {[%clk 01:31:20]} {[%emt 00:00:21]} Bb4+ {[%clk
01:31:00]} {[%emt 00:00:48]} 4. Bd2 {[%clk 01:31:25]} {[%emt 00:00:26]} Be7
{[%clk 01:29:55]} {[%emt 00:01:35]} 5. Bg2 {[%clk 01:29:15]} {[%emt 00:02:39]}
d5 {[%clk 01:30:17]} {[%emt 00:00:08]} 6. Nf3 {[%clk 01:29:40]} {[%emt
00:00:06]} O-O {[%clk 01:28:26]} {[%emt 00:02:21]} 7. O-O {[%clk 01:29:53]}
{[%emt 00:00:17]} c6 {[%clk 01:28:35]} {[%emt 00:00:21]} 8. Qc2 {[%clk
01:27:46]} {[%emt 00:02:37]} a5 {[%clk 01:26:41]} {[%emt 00:02:24]} 9. Bf4
{[%clk 01:20:40]} {[%emt 00:07:35]} Nbd7 {[%clk 01:26:42]} {[%emt 00:00:30]} 10.
Rd1 {[%clk 01:16:34]} {[%emt 00:04:36]} h6 {[%clk 01:26:21]} {[%emt 00:00:51]}
11. Nc3 {[%clk 01:11:47]} {[%emt 00:05:16]} dxc4 {[%clk 01:23:11]} {[%emt
00:03:40]} 12. Nd2 {[%clk 01:11:07]} {[%emt 00:01:09]} Nb6 {[%clk 01:22:33]}
{[%emt 00:01:08]} 13. e4 {[%clk 01:07:17]} {[%emt 00:04:20]} a4 {[%clk
00:50:09]} {[%emt 00:32:55]} 14. a3 {[%clk 00:57:14]} {[%emt 00:10:33]} Bd7
{[%clk 00:47:25]} {[%emt 00:03:14]} 15. h3 {[%clk 00:53:53]} {[%emt 00:03:51]}
Qc8 {[%clk 00:38:49]} {[%emt 00:09:07]} 16. g4 {[%clk 00:31:42]} {[%emt
00:22:41]} Rd8 {[%clk 00:35:45]} {[%emt 00:03:33]} 17. Bg3 {[%clk 00:25:08]}
{[%emt 00:07:04]} Be8 {[%clk 00:32:11]} {[%emt 00:04:05]} 18. Nf1 {[%clk
00:25:07]} {[%emt 00:00:31]} Nbd7 {[%clk 00:23:01]} {[%emt 00:09:41]} 19. Nxa4
{[%clk 00:21:01]} {[%emt 00:04:36]} b5 {[%clk 00:20:22]} {[%emt 00:03:08]} 20.
Nc3 {[%clk 00:21:25]} {[%emt 00:00:06]} Nb6 {[%clk 00:20:15]} {[%emt 00:00:37]}
21. Ne3 {[%clk 00:19:55]} {[%emt 00:02:00]} Ra7 {[%clk 00:19:42]} {[%emt
00:01:04]} 22. h4 {[%clk 00:14:59]} {[%emt 00:05:25]} Rad7 {[%clk 00:18:46]}
{[%emt 00:01:26]} 23. e5 {[%clk 00:13:44]} {[%emt 00:01:45]} Nfd5 {[%clk
00:19:02]} {[%emt 00:00:14]} 24. Nexd5 {[%clk 00:13:41]} {[%emt 00:00:33]} Nxd5
{[%clk 00:16:19]} {[%emt 00:03:13]} 25. Ne4 {[%clk 00:12:08]} {[%emt 00:02:03]}
c5 {[%clk 00:15:55]} {[%emt 00:00:55]} 26. dxc5 {[%clk 00:12:00]} {[%emt
00:00:38]} Bxc5 {[%clk 00:16:04]} {[%emt 00:00:21]} 27. Nd6 {[%clk 00:12:12]}
{[%emt 00:00:19]} Bxd6 {[%clk 00:14:08]} {[%emt 00:02:26]} 28. exd6 {[%clk
00:12:35]} {[%emt 00:00:07]} Nb6 {[%clk 00:08:52]} {[%emt 00:05:46]} 29. b3
{[%clk 00:07:33]} {[%emt 00:05:32]} Ra7 {[%clk 00:07:22]} {[%emt 00:02:00]} 30.
g5 {[%clk 00:04:44]} {[%emt 00:03:18]} hxg5 {[%clk 00:06:01]} {[%emt 00:01:52]}
31. hxg5 {[%clk 00:05:07]} {[%emt 00:00:07]} cxb3 {[%clk 00:03:38]} {[%emt
00:02:54]} 32. Qxb3 {[%clk 00:05:29]} {[%emt 00:00:08]} Bc6 {[%clk 00:02:39]}
{[%emt 00:01:29]} 33. Bh3 {[%clk 00:04:18]} {[%emt 00:01:40]} Ba8 {[%clk
00:02:17]} {[%emt 00:00:52]} 34. Qxb5 {[%clk 00:04:06]} {[%emt 00:00:42]} Qb7
{[%clk 00:00:57]} {[%emt 00:01:50]} 35. Kh2 {[%clk 00:04:27]} {[%emt 00:00:09]}
Ra6 {[%clk 00:00:35]} {[%emt 00:00:53]} 36. g6 {[%clk 00:02:53]} {[%emt
00:02:04]} fxg6 {[%clk 00:01:01]} {[%emt 00:00:04]} 37. Rdc1 {[%clk 00:02:24]}
1-0